[Event "*** SCC Grand Prix: Titled Tuesday Blitz"]
[Site "Chess.com"]
[Date "2020.09.08"]
[Round "10"]
[White "AntonovaNadezhda"]
[Black "SophieNikoladze"]
[Result "0-1"]
[WhiteElo "2061"]
[BlackElo "2242"]
[TimeControl "180+1"]
[EndTime "11:54:45 PDT"]
[Termination "SophieNikoladze won by resignation"]

1. Nf3 {[%clk 0:03:00.9]} 1... b5 {[%clk 0:02:58.6]} 2. d4 {[%clk 0:02:58.9]}
2... Bb7 {[%clk 0:02:57.8]} 3. Nbd2 {[%clk 0:02:55.5]} 3... e6 {[%clk
0:02:56.1]} 4. e4 {[%clk 0:02:54.4]} 4... a6 {[%clk 0:02:55.1]} 5. Bd3 {[%clk
0:02:51.2]} 5... c5 {[%clk 0:02:55]} 6. c3 {[%clk 0:02:51.4]} 6... Nf6 {[%clk
0:02:53.7]} 7. O-O {[%clk 0:02:50.4]} 7... d6 {[%clk 0:02:53.3]} 8. Qe2 {[%clk
0:02:30.5]} 8... Be7 {[%clk 0:02:50.2]} 9. e5 {[%clk 0:02:27.6]} 9... Nfd7
{[%clk 0:02:48.5]} 10. exd6 {[%clk 0:02:24.6]} 10... Bxd6 {[%clk 0:02:47.9]} 11.
Ne4 {[%clk 0:02:24.6]} 11... Be7 {[%clk 0:02:47.7]} 12. dxc5 {[%clk 0:02:22.5]}
12... Nxc5 {[%clk 0:02:47.5]} 13. Nxc5 {[%clk 0:02:21.7]} 13... Bxc5 {[%clk
0:02:47.2]} 14. Rd1 {[%clk 0:02:21.5]} 14... Qe7 {[%clk 0:02:46.3]} 15. Bg5
{[%clk 0:02:18.8]} 15... Qc7 {[%clk 0:02:44.3]} 16. Bxb5+ {[%clk 0:02:02.2]}
16... axb5 {[%clk 0:02:42.1]} 17. Rd8+ {[%clk 0:02:00.6]} 17... Qxd8 {[%clk
0:02:38.7]} 18. Bxd8 {[%clk 0:02:00.4]} 18... Kxd8 {[%clk 0:02:38.7]} 19. Rd1+
{[%clk 0:01:57.6]} 19... Kc7 {[%clk 0:02:35.4]} 20. Qxb5 {[%clk 0:01:56.5]}
20... Bb6 {[%clk 0:02:31.9]} 21. Ne5 {[%clk 0:01:48.2]} 21... Ra5 {[%clk
0:02:31.5]} 22. Rd7+ {[%clk 0:01:41.9]} 22... Nxd7 {[%clk 0:02:31.2]} 23. Qxd7+
{[%clk 0:01:40.8]} 23... Kb8 {[%clk 0:02:31.6]} 24. Nxf7 {[%clk 0:01:36.6]}
24... Rd5 {[%clk 0:02:23.4]} 25. Qxd5 {[%clk 0:01:24]} 25... Bxd5 {[%clk
0:02:20.7]} 26. Nxh8 {[%clk 0:01:24.6]} 26... e5 {[%clk 0:02:20.8]} 27. h4
{[%clk 0:01:19.1]} 27... Bxa2 {[%clk 0:02:18.9]} 28. Kh2 {[%clk 0:01:17.2]}
28... Kc7 {[%clk 0:02:17.8]} 29. Kg3 {[%clk 0:01:15.6]} 29... Kd7 {[%clk
0:02:17.9]} 30. f3 {[%clk 0:01:11.8]} 30... Ke7 {[%clk 0:02:17.5]} 31. Kg4
{[%clk 0:01:06.1]} 31... Be6+ {[%clk 0:02:16.1]} 32. Kg5 {[%clk 0:01:05.3]}
32... Be3+ {[%clk 0:02:16]} 33. Kh5 {[%clk 0:01:04.6]} 33... Kf8 {[%clk
0:02:15.8]} 34. Ng6+ {[%clk 0:00:58.2]} 34... hxg6+ {[%clk 0:02:14.1]} 35. Kxg6
{[%clk 0:00:58.6]} 35... Bc1 {[%clk 0:02:14.7]} 36. b4 {[%clk 0:00:52.5]} 36...
Bd2 {[%clk 0:02:14]} 37. b5 {[%clk 0:00:51.6]} 37... Bxc3 {[%clk 0:02:14.1]} 38.
b6 {[%clk 0:00:50.6]} 38... Bd5 {[%clk 0:02:14.1]} 39. Kf5 {[%clk 0:00:47.7]}
39... Bd4 {[%clk 0:02:13.5]} 40. h5 {[%clk 0:00:41.5]} 40... Kf7 {[%clk
0:02:12.4]} 41. f4 {[%clk 0:00:30.2]} 41... e4 {[%clk 0:02:10.7]} 42. g4 {[%clk
0:00:27.7]} 42... e3 {[%clk 0:02:10]} 43. g5 {[%clk 0:00:28.3]} 43... e2 {[%clk
0:02:09.6]} 44. g6+ {[%clk 0:00:28.4]} 44... Ke7 {[%clk 0:02:08.3]} 45. h6
{[%clk 0:00:28.1]} 45... gxh6 {[%clk 0:02:07.8]} 0-1

[Event "*** SCC Grand Prix: Titled Tuesday Blitz"]
[Site "Chess.com"]
[Date "2020.09.08"]
[Round "10"]
[White "DenLaz"]
[Black "Shubinkirill2003"]
[Result "1-0"]
[WhiteElo "2779"]
[BlackElo "2650"]
[TimeControl "180+1"]
[EndTime "11:54:49 PDT"]
[Termination "DenLaz won by resignation"]

1. d4 {[%clk 0:03:00.9]} 1... e6 {[%clk 0:02:59.7]} 2. c4 {[%clk 0:03:00.4]}
2... Nf6 {[%clk 0:02:59.8]} 3. Nf3 {[%clk 0:03:00.5]} 3... Bb4+ {[%clk
0:02:59.8]} 4. Bd2 {[%clk 0:03:00.4]} 4... a5 {[%clk 0:02:59.4]} 5. g3 {[%clk
0:02:59.4]} 5... d6 {[%clk 0:02:59]} 6. Bg2 {[%clk 0:02:59.8]} 6... Nbd7 {[%clk
0:02:59]} 7. O-O {[%clk 0:03:00.1]} 7... e5 {[%clk 0:02:59.1]} 8. Nc3 {[%clk
0:02:49.1]} 8... O-O {[%clk 0:02:58.1]} 9. a3 {[%clk 0:02:45]} 9... Bxc3 {[%clk
0:02:56.7]} 10. Bxc3 {[%clk 0:02:44.7]} 10... Ne4 {[%clk 0:02:56.3]} 11. Qc2
{[%clk 0:02:42.5]} 11... Nxc3 {[%clk 0:02:54.3]} 12. Qxc3 {[%clk 0:02:43.4]}
12... Re8 {[%clk 0:02:51.3]} 13. dxe5 {[%clk 0:02:35.8]} 13... Nxe5 {[%clk
0:02:44.2]} 14. b4 {[%clk 0:02:32.7]} 14... Qf6 {[%clk 0:02:22.7]} 15. Nxe5
{[%clk 0:02:30.6]} 15... Qxe5 {[%clk 0:02:15.7]} 16. Qxe5 {[%clk 0:02:29.4]}
16... Rxe5 {[%clk 0:02:16.4]} 17. e3 {[%clk 0:02:28.9]} 17... Kf8 {[%clk
0:02:01.6]} 18. Rfd1 {[%clk 0:02:09.1]} 18... Ke7 {[%clk 0:01:51.1]} 19. Re1
{[%clk 0:01:36.5]} 19... axb4 {[%clk 0:01:34.2]} 20. axb4 {[%clk 0:01:34.8]}
20... Rxa1 {[%clk 0:01:34.1]} 21. Rxa1 {[%clk 0:01:35.7]} 21... Be6 {[%clk
0:01:26.9]} 22. Rc1 {[%clk 0:01:23.7]} 22... c6 {[%clk 0:01:22.6]} 23. Rc3
{[%clk 0:01:18.6]} 23... Bf5 {[%clk 0:01:20.3]} 24. f3 {[%clk 0:01:05.1]} 24...
g5 {[%clk 0:01:15.7]} 25. Kf2 {[%clk 0:01:04]} 25... Re6 {[%clk 0:01:01.6]} 26.
Ra3 {[%clk 0:00:56.8]} 26... Kd7 {[%clk 0:00:59.8]} 27. e4 {[%clk 0:00:50]} 1-0

[Event "*** SCC Grand Prix: Titled Tuesday Blitz"]
[Site "Chess.com"]
[Date "2020.09.08"]
[Round "10"]
[White "OminousOmen"]
[Black "kirillshevchenko"]
[Result "1-0"]
[WhiteElo "2956"]
[BlackElo "2867"]
[TimeControl "180+1"]
[EndTime "11:54:52 PDT"]
[Termination "OminousOmen won by resignation"]

1. d4 {[%clk 0:03:00.9]} 1... Nf6 {[%clk 0:02:59.4]} 2. c4 {[%clk 0:03:01.1]}
2... g6 {[%clk 0:02:59.8]} 3. Nc3 {[%clk 0:02:58.7]} 3... Bg7 {[%clk 0:03:00.2]}
4. e4 {[%clk 0:02:57.5]} 4... d6 {[%clk 0:03:00.5]} 5. f4 {[%clk 0:02:57.7]}
5... O-O {[%clk 0:02:58.6]} 6. Nf3 {[%clk 0:02:57.6]} 6... c5 {[%clk 0:02:58.4]}
7. d5 {[%clk 0:02:57.9]} 7... b5 {[%clk 0:02:58.3]} 8. cxb5 {[%clk 0:02:56.9]}
8... a6 {[%clk 0:02:58.8]} 9. a4 {[%clk 0:02:57.2]} 9... axb5 {[%clk 0:02:51.7]}
10. Bxb5 {[%clk 0:02:58.1]} 10... Ba6 {[%clk 0:02:52]} 11. Rb1 {[%clk
0:02:58.8]} 11... Ne8 {[%clk 0:02:36.3]} 12. O-O {[%clk 0:02:52.9]} 12... Nc7
{[%clk 0:02:35.3]} 13. e5 {[%clk 0:02:42.3]} 13... Nd7 {[%clk 0:02:27.2]} 14. e6
{[%clk 0:02:26]} 14... Nf6 {[%clk 0:02:01.2]} 15. Bxa6 {[%clk 0:02:08.9]} 15...
Rxa6 {[%clk 0:01:59.8]} 16. exf7+ {[%clk 0:02:07.4]} 16... Rxf7 {[%clk
0:01:59.7]} 17. Ng5 {[%clk 0:02:07.2]} 17... Rf8 {[%clk 0:02:00]} 18. f5 {[%clk
0:02:07.8]} 18... Qa8 {[%clk 0:01:27.5]} 19. fxg6 {[%clk 0:01:54.7]} 19... hxg6
{[%clk 0:01:27.8]} 20. Qd3 {[%clk 0:01:55.2]} 20... Ncxd5 {[%clk 0:01:25.7]} 21.
Nxd5 {[%clk 0:01:29]} 21... Nxd5 {[%clk 0:01:10.4]} 22. Rxf8+ {[%clk 0:01:28.3]}
22... Kxf8 {[%clk 0:00:32.8]} 23. Qxg6 {[%clk 0:01:19.6]} 23... Kg8 {[%clk
0:00:23.9]} 24. Ne6 {[%clk 0:01:10.8]} 1-0

[Event "*** SCC Grand Prix: Titled Tuesday Blitz"]
[Site "Chess.com"]
[Date "2020.09.08"]
[Round "10"]
[White "FlamingPhoenix123"]
[Black "gui_borba"]
[Result "1-0"]
[WhiteElo "2565"]
[BlackElo "2420"]
[TimeControl "180+1"]
[EndTime "11:54:52 PDT"]
[Termination "FlamingPhoenix123 won by resignation"]

1. e4 {[%clk 0:03:00.9]} 1... c5 {[%clk 0:03:00.2]} 2. Nf3 {[%clk 0:03:00.4]}
2... e6 {[%clk 0:03:01.1]} 3. d4 {[%clk 0:02:59.6]} 3... cxd4 {[%clk 0:03:02]}
4. Nxd4 {[%clk 0:03:00.4]} 4... Nf6 {[%clk 0:03:02.6]} 5. Nc3 {[%clk 0:03:00.1]}
5... d6 {[%clk 0:03:03.2]} 6. g4 {[%clk 0:02:55.4]} 6... Nc6 {[%clk 0:03:01.2]}
7. g5 {[%clk 0:02:48.4]} 7... Nd7 {[%clk 0:03:01.6]} 8. Be3 {[%clk 0:02:47.6]}
8... Be7 {[%clk 0:03:01.9]} 9. h4 {[%clk 0:02:47.6]} 9... O-O {[%clk 0:03:00.7]}
10. Qh5 {[%clk 0:02:47.5]} 10... a6 {[%clk 0:02:59.4]} 11. O-O-O {[%clk
0:02:46.2]} 11... Re8 {[%clk 0:02:59.1]} 12. f4 {[%clk 0:02:34.2]} 12... Bf8
{[%clk 0:02:57.8]} 13. Be2 {[%clk 0:02:23.3]} 13... Nxd4 {[%clk 0:02:45.9]} 14.
Bxd4 {[%clk 0:02:21.9]} 14... e5 {[%clk 0:02:41.7]} 15. Be3 {[%clk 0:02:17.6]}
15... exf4 {[%clk 0:02:41.7]} 16. Bxf4 {[%clk 0:02:18.5]} 16... Ne5 {[%clk
0:02:42.2]} 17. Bxe5 {[%clk 0:02:06.4]} 17... Rxe5 {[%clk 0:02:43.1]} 18. Bc4
{[%clk 0:02:07]} 18... Be6 {[%clk 0:02:39]} 19. Bxe6 {[%clk 0:02:06.6]} 19...
fxe6 {[%clk 0:02:39.9]} 20. Rhf1 {[%clk 0:02:03]} 20... Qe8 {[%clk 0:02:35.2]}
21. Qf3 {[%clk 0:01:59.4]} 21... b5 {[%clk 0:02:29.8]} 22. Rd2 {[%clk
0:01:55.3]} 22... b4 {[%clk 0:01:58.2]} 23. Ne2 {[%clk 0:01:54.5]} 23... Rc5
{[%clk 0:01:50.9]} 24. Nd4 {[%clk 0:01:49.8]} 24... g6 {[%clk 0:01:42]} 25. Qb3
{[%clk 0:01:36.3]} 25... Re5 {[%clk 0:01:31.6]} 26. Rf6 {[%clk 0:01:33.7]} 26...
Rxe4 {[%clk 0:01:04.7]} 27. Nxe6 {[%clk 0:01:33]} 27... Kh8 {[%clk 0:00:20.1]}
28. Rxf8+ {[%clk 0:01:27.6]} 28... Qxf8 {[%clk 0:00:21]} 29. Nxf8 {[%clk
0:01:28.5]} 29... Rxf8 {[%clk 0:00:21.9]} 1-0

[Event "*** SCC Grand Prix: Titled Tuesday Blitz"]
[Site "Chess.com"]
[Date "2020.09.08"]
[Round "10"]
[White "m_ezat"]
[Black "Beca95"]
[Result "1-0"]
[WhiteElo "2637"]
[BlackElo "2904"]
[TimeControl "180+1"]
[EndTime "11:54:54 PDT"]
[Termination "m_ezat won by resignation"]

1. d4 {[%clk 0:03:00.9]} 1... Nf6 {[%clk 0:02:58.3]} 2. c4 {[%clk 0:03:01.4]}
2... c5 {[%clk 0:02:58.7]} 3. d5 {[%clk 0:03:00.6]} 3... e6 {[%clk 0:02:59.4]}
4. Nc3 {[%clk 0:02:59.6]} 4... exd5 {[%clk 0:03:00.3]} 5. cxd5 {[%clk 0:03:00]}
5... d6 {[%clk 0:03:01]} 6. e4 {[%clk 0:03:00.4]} 6... g6 {[%clk 0:03:01.1]} 7.
f4 {[%clk 0:03:00.9]} 7... Bg7 {[%clk 0:03:01.6]} 8. Bb5+ {[%clk 0:03:00.2]}
8... Nfd7 {[%clk 0:03:02]} 9. Be2 {[%clk 0:03:00.2]} 9... Qh4+ {[%clk
0:02:59.9]} 10. g3 {[%clk 0:03:00.3]} 10... Qd8 {[%clk 0:02:59.8]} 11. Nf3
{[%clk 0:03:00.5]} 11... O-O {[%clk 0:03:00.2]} 12. O-O {[%clk 0:03:00.5]} 12...
Nb6 {[%clk 0:03:00.6]} 13. a4 {[%clk 0:02:58.1]} 13... Bg4 {[%clk 0:03:00.3]}
14. a5 {[%clk 0:02:57.6]} 14... Bxf3 {[%clk 0:02:59.8]} 15. Bxf3 {[%clk
0:02:55]} 15... N6d7 {[%clk 0:03:00.1]} 16. Nb5 {[%clk 0:02:49.4]} 16... Qe7
{[%clk 0:02:50]} 17. Nc7 {[%clk 0:02:45.2]} 17... Na6 {[%clk 0:02:49.5]} 18.
Nxa8 {[%clk 0:02:44.8]} 18... Rxa8 {[%clk 0:02:50.4]} 19. Qb3 {[%clk 0:02:34.5]}
19... Nb4 {[%clk 0:02:48]} 20. Bd2 {[%clk 0:02:29.3]} 20... h5 {[%clk
0:02:47.7]} 21. Rae1 {[%clk 0:01:53.5]} 21... h4 {[%clk 0:02:45.2]} 22. Kg2
{[%clk 0:01:51.6]} 22... Kh7 {[%clk 0:02:40.9]} 23. Bc3 {[%clk 0:01:44.4]} 23...
Rh8 {[%clk 0:02:38.4]} 24. Bxg7 {[%clk 0:01:24.2]} 24... Kxg7 {[%clk 0:02:39.3]}
25. Qc3+ {[%clk 0:01:23.9]} 25... f6 {[%clk 0:02:38.4]} 26. Bg4 {[%clk
0:01:22.2]} 26... Nf8 {[%clk 0:02:37.5]} 27. e5 {[%clk 0:01:14.1]} 27... Nxd5
{[%clk 0:02:37.2]} 28. Qc4 {[%clk 0:01:11.7]} 28... Nc7 {[%clk 0:02:31.8]} 29.
exd6 {[%clk 0:01:04]} 29... Qxd6 {[%clk 0:02:30.4]} 30. Rd1 {[%clk 0:01:02.3]}
30... Qc6+ {[%clk 0:02:23.1]} 31. Bf3 {[%clk 0:01:02.2]} 31... Qa6 {[%clk
0:02:08.8]} 32. Qxc5 {[%clk 0:00:57.5]} 32... Nce6 {[%clk 0:02:02.8]} 33. Qe7+
{[%clk 0:00:54]} 33... Kh6 {[%clk 0:02:03.2]} 34. Qxf6 {[%clk 0:00:53.5]} 34...
h3+ {[%clk 0:02:02.9]} 35. Kh1 {[%clk 0:00:42.7]} 35... Rh7 {[%clk 0:02:02.8]}
36. g4 {[%clk 0:00:38.3]} 36... Rc7 {[%clk 0:01:49]} 37. Qh8+ {[%clk 0:00:28.4]}
37... Nh7 {[%clk 0:01:46.4]} 38. g5+ {[%clk 0:00:23.4]} 38... Nxg5 {[%clk
0:01:46.8]} 39. fxg5+ {[%clk 0:00:23.6]} 39... Kxg5 {[%clk 0:01:47.7]} 40. Qe5+
{[%clk 0:00:23.4]} 40... Kh6 {[%clk 0:01:48.6]} 41. Qxc7 {[%clk 0:00:23.2]} 1-0

[Event "*** SCC Grand Prix: Titled Tuesday Blitz"]
[Site "Chess.com"]
[Date "2020.09.08"]
[Round "10"]
[White "bazar-wokzal"]
[Black "ItsCheckM8Mate"]
[Result "1/2-1/2"]
[WhiteElo "2471"]
[BlackElo "2338"]
[TimeControl "180+1"]
[EndTime "11:54:54 PDT"]
[Termination "Game drawn by agreement"]

1. e4 {[%clk 0:02:56.7]} 1... e5 {[%clk 0:02:59.4]} 2. Bc4 {[%clk 0:02:56.2]}
2... Nc6 {[%clk 0:02:56.3]} 3. f4 {[%clk 0:02:56.2]} 3... Nf6 {[%clk 0:02:37.5]}
4. Nc3 {[%clk 0:02:55.8]} 4... Nxe4 {[%clk 0:02:30.6]} 5. Nf3 {[%clk 0:02:55.7]}
5... Nxc3 {[%clk 0:02:22.2]} 6. dxc3 {[%clk 0:02:55.4]} 6... Bc5 {[%clk
0:02:02.2]} 7. Bxf7+ {[%clk 0:02:48.3]} 7... Kxf7 {[%clk 0:02:01.7]} 8. Qd5+
{[%clk 0:02:48.4]} 8... Ke8 {[%clk 0:01:57.3]} 9. Qxc5 {[%clk 0:02:47.3]} 9...
d6 {[%clk 0:01:57.5]} 10. Qe3 {[%clk 0:02:46.1]} 10... Qe7 {[%clk 0:01:43.2]}
11. fxe5 {[%clk 0:02:33.6]} 11... Nxe5 {[%clk 0:01:34.4]} 12. Nxe5 {[%clk
0:02:32.4]} 12... Qxe5 {[%clk 0:01:34]} 13. Qxe5+ {[%clk 0:02:31.6]} 13... dxe5
{[%clk 0:01:34.2]} 14. O-O {[%clk 0:02:31.4]} 14... Be6 {[%clk 0:01:16.7]} 15.
Bg5 {[%clk 0:02:29.9]} 15... Rf8 {[%clk 0:01:11.5]} 16. Rae1 {[%clk 0:02:22.8]}
16... Rxf1+ {[%clk 0:01:06.1]} 17. Kxf1 {[%clk 0:02:22.8]} 17... Kd7 {[%clk
0:01:06.2]} 18. Rxe5 {[%clk 0:02:22.1]} 18... Rf8+ {[%clk 0:01:06]} 19. Ke2
{[%clk 0:02:16.2]} 19... Rf5 {[%clk 0:01:05.8]} 20. Rxf5 {[%clk 0:02:10.8]}
20... Bxf5 {[%clk 0:01:06]} 21. Kd2 {[%clk 0:02:11.1]} 21... h5 {[%clk
0:01:01.3]} 22. c4 {[%clk 0:02:10.1]} 22... Be4 {[%clk 0:00:58.1]} 23. g3 {[%clk
0:02:09.8]} 23... Bf5 {[%clk 0:00:57.9]} 24. b4 {[%clk 0:02:02.3]} 24... a6
{[%clk 0:00:56.5]} 25. c5 {[%clk 0:01:59.8]} 25... c6 {[%clk 0:00:54.6]} 26. c4
{[%clk 0:01:58.3]} 26... Bb1 {[%clk 0:00:53.4]} 27. a3 {[%clk 0:01:58]} 27...
Bf5 {[%clk 0:00:53.1]} 28. Ke3 {[%clk 0:01:57.4]} 28... Bb1 {[%clk 0:00:51.7]}
29. Kd4 {[%clk 0:01:56.5]} 29... g6 {[%clk 0:00:50.2]} 30. a4 {[%clk 0:01:52.3]}
30... Bc2 {[%clk 0:00:49.6]} 31. a5 {[%clk 0:01:51.8]} 31... Bb1 {[%clk
0:00:49.3]} 32. Ke5 {[%clk 0:01:49.9]} 32... Bd3 {[%clk 0:00:48.6]} 33. Kf6
{[%clk 0:01:49.9]} 33... Kc8 {[%clk 0:00:44.9]} 34. Bf4 {[%clk 0:01:48.4]} 34...
Kd7 {[%clk 0:00:44.6]} 35. Be5 {[%clk 0:01:40.2]} 35... Kc8 {[%clk 0:00:44]} 36.
h3 {[%clk 0:01:40.1]} 36... Kd7 {[%clk 0:00:44.2]} 37. g4 {[%clk 0:01:40.5]}
37... hxg4 {[%clk 0:00:44.1]} 38. hxg4 {[%clk 0:01:40.5]} 38... Kc8 {[%clk
0:00:44.3]} 1/2-1/2

[Event "*** SCC Grand Prix: Titled Tuesday Blitz"]
[Site "Chess.com"]
[Date "2020.09.08"]
[Round "10"]
[White "ARMQUEEN"]
[Black "Iskusnyh"]
[Result "0-1"]
[WhiteElo "2454"]
[BlackElo "2583"]
[TimeControl "180+1"]
[EndTime "11:54:58 PDT"]
[Termination "Iskusnyh won by resignation"]

1. e4 {[%clk 0:03:00.9]} 1... e6 {[%clk 0:02:59.2]} 2. d4 {[%clk 0:03:00.5]}
2... d5 {[%clk 0:02:59.5]} 3. Bd3 {[%clk 0:03:01.1]} 3... c5 {[%clk 0:02:58.4]}
4. exd5 {[%clk 0:03:00.7]} 4... exd5 {[%clk 0:02:58.4]} 5. c3 {[%clk 0:03:00.3]}
5... Nc6 {[%clk 0:02:54.1]} 6. Ne2 {[%clk 0:02:59.6]} 6... Nf6 {[%clk
0:02:52.9]} 7. O-O {[%clk 0:02:58.3]} 7... Bd6 {[%clk 0:02:52.4]} 8. h3 {[%clk
0:02:53.8]} 8... O-O {[%clk 0:02:48]} 9. Bc2 {[%clk 0:02:52.8]} 9... h6 {[%clk
0:02:30]} 10. Ng3 {[%clk 0:02:48.4]} 10... Re8 {[%clk 0:02:19.6]} 11. Be3 {[%clk
0:02:47.5]} 11... Bxg3 {[%clk 0:02:15.7]} 12. Bxh6 {[%clk 0:02:37]} 12... Bd6
{[%clk 0:02:00.1]} 13. Bg5 {[%clk 0:02:34.7]} 13... cxd4 {[%clk 0:01:56.2]} 14.
cxd4 {[%clk 0:02:34.2]} 14... Nb4 {[%clk 0:01:55.2]} 15. Bb3 {[%clk 0:02:33.2]}
15... Bf5 {[%clk 0:01:51.1]} 16. Nc3 {[%clk 0:02:32.5]} 16... Be7 {[%clk
0:01:38.6]} 17. a3 {[%clk 0:02:23.7]} 17... Nc6 {[%clk 0:01:37.8]} 18. Qd2
{[%clk 0:02:11.9]} 18... Ne4 {[%clk 0:01:35.4]} 19. Nxe4 {[%clk 0:02:10.6]}
19... Bxe4 {[%clk 0:01:34.3]} 20. Bf4 {[%clk 0:02:08.5]} 20... Bf6 {[%clk
0:01:33.4]} 21. Be3 {[%clk 0:02:08.3]} 21... Qb6 {[%clk 0:01:31.9]} 22. Ba4
{[%clk 0:02:04.2]} 22... Re6 {[%clk 0:01:26.3]} 23. Rfd1 {[%clk 0:01:59.7]}
23... Na5 {[%clk 0:01:19.9]} 24. Rac1 {[%clk 0:01:51]} 24... Nb3 {[%clk
0:01:13.5]} 25. Bxb3 {[%clk 0:01:50.8]} 25... Qxb3 {[%clk 0:01:13.3]} 26. Rc3
{[%clk 0:01:51.5]} 26... Qb6 {[%clk 0:01:10.6]} 27. f3 {[%clk 0:01:49.4]} 27...
Bg6 {[%clk 0:01:09]} 28. Bf2 {[%clk 0:01:49.5]} 28... Rae8 {[%clk 0:01:07.6]}
29. Qf4 {[%clk 0:01:45.6]} 29... Re2 {[%clk 0:01:00.2]} 30. Bh4 {[%clk
0:01:18.1]} 30... Bxh4 {[%clk 0:00:48.2]} 31. Qxh4 {[%clk 0:01:18.1]} 31... Qxb2
{[%clk 0:00:46.7]} 0-1

[Event "*** SCC Grand Prix: Titled Tuesday Blitz"]
[Site "Chess.com"]
[Date "2020.09.08"]
[Round "10"]
[White "albi1999"]
[Black "aNaartjieZA"]
[Result "1-0"]
[WhiteElo "2631"]
[BlackElo "2489"]
[TimeControl "180+1"]
[EndTime "11:55:06 PDT"]
[Termination "albi1999 won by resignation"]

1. d4 {[%clk 0:03:00.9]} 1... Nf6 {[%clk 0:02:59.6]} 2. c4 {[%clk 0:02:59.3]}
2... c5 {[%clk 0:02:59.7]} 3. d5 {[%clk 0:02:52.2]} 3... e5 {[%clk 0:02:59.4]}
4. Nc3 {[%clk 0:02:48.7]} 4... d6 {[%clk 0:02:59.5]} 5. e4 {[%clk 0:02:49.1]}
5... Nbd7 {[%clk 0:02:58.9]} 6. Nf3 {[%clk 0:02:48.6]} 6... Be7 {[%clk 0:02:59]}
7. g3 {[%clk 0:02:48.9]} 7... h5 {[%clk 0:02:55.9]} 8. Bg2 {[%clk 0:02:48]} 8...
a6 {[%clk 0:02:49.8]} 9. a4 {[%clk 0:02:47.2]} 9... Rb8 {[%clk 0:02:49.2]} 10.
h4 {[%clk 0:02:40.3]} 10... b5 {[%clk 0:02:47.8]} 11. axb5 {[%clk 0:02:28.8]}
11... axb5 {[%clk 0:02:47.5]} 12. cxb5 {[%clk 0:02:29.7]} 12... c4 {[%clk
0:02:38.4]} 13. Qe2 {[%clk 0:02:26]} 13... Qc7 {[%clk 0:02:37]} 14. Nd2 {[%clk
0:02:21.3]} 14... Nb6 {[%clk 0:02:36.4]} 15. O-O {[%clk 0:02:18.9]} 15... Bg4
{[%clk 0:02:34]} 16. f3 {[%clk 0:02:17.1]} 16... Bd7 {[%clk 0:02:33.1]} 17. Ndb1
{[%clk 0:02:16.3]} 17... Rc8 {[%clk 0:02:25.6]} 18. Be3 {[%clk 0:02:16]} 18...
Nh7 {[%clk 0:02:24.4]} 19. Qf2 {[%clk 0:02:15.4]} 19... Rb8 {[%clk 0:02:23.2]}
20. Nd2 {[%clk 0:02:11.4]} 20... Bd8 {[%clk 0:02:19.8]} 21. f4 {[%clk
0:02:03.6]} 21... exf4 {[%clk 0:02:06.3]} 22. Bxf4 {[%clk 0:01:57]} 22... Nf6
{[%clk 0:02:04.7]} 23. e5 {[%clk 0:01:43.9]} 23... Ng4 {[%clk 0:02:04.2]} 24.
exd6 {[%clk 0:01:42.9]} 24... Qc8 {[%clk 0:02:02.8]} 25. Rae1+ {[%clk
0:01:40.4]} 25... Kf8 {[%clk 0:02:02.5]} 26. Qe2 {[%clk 0:01:37.9]} 26... Bf6
{[%clk 0:01:55.7]} 27. Bg5 {[%clk 0:01:34.6]} 27... Qd8 {[%clk 0:01:46.5]} 28.
Qe7+ {[%clk 0:01:24.6]} 28... Bxe7 {[%clk 0:01:40.2]} 29. dxe7+ {[%clk
0:01:25.5]} 29... Qxe7 {[%clk 0:01:40.4]} 30. Bxe7+ {[%clk 0:01:24.8]} 30... Kg8
{[%clk 0:01:40.3]} 31. Bd6 {[%clk 0:01:23.8]} 31... Rc8 {[%clk 0:01:36.8]} 32.
Nde4 {[%clk 0:01:22.5]} 32... Rh6 {[%clk 0:01:35.3]} 33. Bf4 {[%clk 0:01:21.8]}
33... Rg6 {[%clk 0:01:34.6]} 34. Nf2 {[%clk 0:01:15.2]} 34... Nxf2 {[%clk
0:01:28.4]} 35. Kxf2 {[%clk 0:01:16.1]} 35... Bf5 {[%clk 0:01:24.3]} 36. d6
{[%clk 0:01:09.5]} 36... Bd3 {[%clk 0:01:23.8]} 37. Rg1 {[%clk 0:01:04]} 37...
Rd8 {[%clk 0:01:20.8]} 38. Bc6 {[%clk 0:01:01.3]} 38... Rgxd6 {[%clk 0:01:16.7]}
39. Bxd6 {[%clk 0:01:02.2]} 39... Rxd6 {[%clk 0:01:16.9]} 40. Re8+ {[%clk
0:01:02.3]} 40... Kh7 {[%clk 0:01:16.7]} 41. Be4+ {[%clk 0:01:03.2]} 41... g6
{[%clk 0:01:16.5]} 42. Bxd3 {[%clk 0:01:01.2]} 42... cxd3 {[%clk 0:01:16.2]} 43.
Rd1 {[%clk 0:00:59.4]} 1-0